bitfinex/quotes_SOLUSD_20251013
["timestamp","ask_amount","ask_price","bid_price","bid_amount"]
[1760379247001,10.87647521,204.51,204.5,0.2]
[1760379247167,0.67,204.6,204.5,17.97491442]
[1760379247472,3.97393008,204.58,204.51,0.66]
[1760379247647,9.4,204.57,204.51,0.66]
[1760379247853,10.87647521,204.55,204.51,0.66]
[1760379248058,10.87647521,204.53,204.52,20.8]
[1760379248241,14.85040529,204.53,204.52,20.8]
[1760379248664,24.25040529,204.53,204.52,20.8]
[1760379249241,24.25040529,204.53,204.52,25.68949735]
[1760379249442,24.92040529,204.53,204.5,5.08995325]
[1760379249648,24.92040529,204.53,204.5,0.2]
[1760379249649,14.85040529,204.51,204.5,0.2]
[1760379249865,14.85040529,204.51,204.45,0.2]
[1760379249866,10.87647521,204.5,204.45,0.2]
[1760379250174,14.85040529,204.46,204.45,0.2]
[1760379250352,24.25040529,204.46,204.45,0.2]
[1760379250757,24.92040529,204.46,204.45,0.2]
[1760379250964,24.25040529,204.46,204.45,0.2]
[1760379251157,24.25040529,204.46,204.45,5.09117143]
[1760379252259,20.27647521,204.46,204.45,5.09117143]
[1760379252464,24.25040529,204.46,204.45,5.09117143]
[1760379253265,10.87647521,204.43,204.3,4.8947626]
[1760379253480,14.85040529,204.31,204.3,19.83143716]
[1760379253676,24.23040529,204.31,204.3,4.8947626]
[1760379254052,14.85040529,204.31,204.3,4.8947626]
[1760379254356,24.23040529,204.31,204.3,4.8947626]
[1760379254957,24.23040529,204.31,204.3,25.6947626]
[1760379255156,10.87647521,204.31,204.3,26.3547626]
[1760379255377,9.38,204.31,204.3,26.3547626]
[1760379255552,9.38,204.31,204.3,38.59166911]
[1760379255752,8.66,204.33,204.3,38.59166911]
[1760379255977,9.38,204.36,204.33,20.8]
[1760379256176,9.38,204.36,204.34,0.66]
[1760379256565,9.38,204.36,204.35,0.66]
[1760379256772,0.67,204.47,204.35,0.66]
[1760379256986,3.97393008,204.43,204.35,0.66]
[1760379257275,3.97393008,204.42,204.39,20.8]
[1760379257470,3.97393008,204.42,204.39,21.46]
[1760379257866,3.97393008,204.43,204.39,21.46]
[1760379258381,3.97393008,204.43,204.4,0.66]
[1760379258767,10.87647521,204.49,204.41,0.66]
[1760379258968,10.87647521,204.44,204.41,0.66]
[1760379259174,14.85040529,204.44,204.41,0.66]
[1760379259776,14.85040529,204.44,204.43,20.8]
[1760379260871,10.87647521,204.45,204.43,20.8]
[1760379261073,3.97393008,204.44,204.43,20.8]
[1760379262288,3.97393008,204.44,204.43,25.69164995]
[1760379265488,10.87647521,204.49,204.43,4.89164995]
[1760379265673,3.97393008,204.45,204.43,4.89164995]
[1760379266189,14.85040529,204.48,204.47,4.89069301]
[1760379266480,2884.98642108,204.5,204.49,20.8]
[1760379266686,2895.86289629,204.5,204.49,20.8]
[1760379267261,2895.86289629,204.5,204.47,17.11742553]
[1760379267262,2896.52289629,204.5,204.47,25.69069301]
[1760379267457,3.97393008,204.48,204.47,25.69069301]
[1760379268274,2901.26896621,204.5,204.47,25.69069301]
[1760379268593,3.97393008,204.48,204.47,25.69069301]
[1760379268782,10.87647521,204.49,204.47,17.79742553]
[1760379268983,10.87647521,204.49,204.48,0.68]
[1760379269294,14.85040529,204.5,204.38,29.37999998]
[1760379269517,5.9694164,204.5,204.38,29.37999998]
[1760379269667,5.9694164,204.55,204.39,10.87647521]
[1760379269992,9.38,204.54,204.35,20.25647521]
[1760379270207,9.38,204.54,204.39,24.46303635]
[1760379270493,9.38,204.53,204.39,24.46303635]
[1760379270698,9.38,204.52,204.39,24.46303635]
[1760379271487,10.87647521,204.54,204.39,24.46303635]
[1760379271791,9.38,204.53,204.39,24.46303635]
[1760379272396,5.9694164,204.51,204.39,24.46303635]
[1760379272697,10.87647521,204.49,204.39,24.46303635]
[1760379272867,0.66,204.54,204.39,24.46303635]
[1760379272868,9.36,204.48,204.39,24.46303635]
[1760379273073,9.36,204.47,204.39,24.46303635]
[1760379273592,12.21791013,204.62,204.39,24.46303635]
[1760379273593,10.87647521,204.56,204.39,24.46303635]
[1760379273800,5.9694164,204.53,204.39,24.46303635]
[1760379274009,15.3294164,204.52,204.39,24.46303635]
[1760379274889,5.9694164,204.5,204.39,24.46303635]
[1760379275087,15.3294164,204.49,204.37,36.69814551]
[1760379275293,16.84589161,204.48,204.37,36.69814551]
[1760379275604,10.87647521,204.48,204.37,36.69814551]
[1760379275809,9.36,204.47,204.37,36.69814551]
[1760379276689,9.36,204.46,204.37,24.46543034]
[1760379276881,0.66,204.5,204.37,24.46543034]
[1760379277087,20.23647521,204.49,204.37,24.46543034]
[1760379277292,9.36,204.48,204.37,24.46543034]
[1760379279219,10.87647521,204.59,204.37,24.46543034]
[1760379279397,10.87647521,204.55,204.38,10.87647521]
[1760379279588,16.84589161,204.53,204.37,24.46543034]
[1760379279908,0.66,204.52,204.37,24.46543034]
[1760379280209,15.9894164,204.52,204.37,24.46543034]
[1760379280393,10.87647521,204.51,204.37,24.46543034]
[1760379280594,0.66,204.54,204.37,24.46543034]
[1760379280788,10.87647521,204.56,204.38,10.87647521]
[1760379280992,16.84589161,204.54,204.38,10.87647521]
[1760379281216,10.87647521,204.52,204.37,24.46543034]
[1760379281522,9.36,204.51,204.37,24.46543034]
[1760379283411,14.68536603,204.64,204.38,10.87647521]
[1760379283618,10.87647521,204.57,204.38,10.87647521]
[1760379283793,10.87647521,204.55,204.38,10.87647521]
[1760379283995,0.66,204.57,204.39,90.80615146]
[1760379284316,10.87647521,204.6,204.39,90.80615146]
[1760379284492,20.8,204.64,204.39,90.80615146]
[1760379284493,10.87647521,204.58,204.39,90.80615146]
[1760379284692,10.02,204.57,204.39,90.80615146]
[1760379284893,0.66,204.56,204.39,90.80615146]
[1760379285200,20.23647521,204.55,204.39,90.80615146]
[1760379285409,9.36,204.54,204.39,90.80615146]
[1760379285917,10.87647521,204.57,204.39,115.26918781]
[1760379286112,5.9694164,204.59,204.39,115.26918781]
[1760379286113,10.87647521,204.55,204.39,115.26918781]
[1760379286292,9.36,204.54,204.39,115.26918781]
[1760379287221,9.36,204.54,204.39,90.51323449]
[1760379287222,10.87647521,204.53,204.39,90.51323449]
[1760379287588,10.87647521,204.51,204.39,90.51323449]
[1760379288208,10.87647521,204.51,204.39,85.62062722]
[1760379288496,10.87647521,204.56,204.39,85.62062722]
[1760379288708,10.87647521,204.54,204.39,85.62062722]
[1760379289114,9.34,204.53,204.39,85.62062722]
[1760379289319,10.87647521,204.56,204.39,90.50662722]
[1760379289624,9.34,204.55,204.39,90.50662722]
[1760379289798,9.34,204.54,204.39,90.50662722]
[1760379289999,9.34,204.53,204.39,90.50662722]
[1760379290208,9.34,204.53,204.39,95.39923449]
[1760379290423,9.34,204.53,204.39,120.15518781]
[1760379291036,0.49028053,204.66,204.39,129.49518781]
[1760379291330,19.99999999,204.78,204.39,134.78518781]
[1760379291499,0.1,204.85,204.39,134.78518781]
[1760379291500,6.62,204.67,204.39,134.78518781]
[1760379292219,20.61044097,204.77,204.39,134.78518781]
[1760379292220,20.61044097,204.77,204.39,117.66106237]
[1760379292411,9.34,204.66,204.39,117.66106237]
[1760379293014,10.87647521,204.74,204.39,117.66106237]
[1760379293212,9.34,204.67,204.39,117.66106237]
[1760379295209,9.34,204.66,204.39,117.66106237]
[1760379295926,9.34,204.65,204.39,117.66106237]
[1760379296130,0.1,204.68,204.39,117.66106237]
[1760379296313,9.34,204.64,204.39,117.66106237]
[1760379296918,0.1,204.68,204.39,134.78518781]
[1760379297229,9.34,204.67,204.39,183.71126051]
[1760379297526,9.34,204.66,204.39,183.71126051]
[1760379298500,9.34,204.65,204.39,183.71126051]
[1760379298732,0.1,204.68,204.39,183.71126051]
[1760379298917,9.34,204.67,204.39,183.71126051]
[1760379299306,0.1,204.68,204.39,213.07126051]
[1760379299618,8.3,204.67,204.39,213.07126051]
[1760379300500,0.1,204.68,204.39,213.07126051]
[1760379300823,8.26,204.67,204.39,213.07126051]
[1760379301633,0.1,204.68,204.39,213.07126051]
[1760379301812,3.62,204.67,204.39,213.07126051]
[1760379302015,5.6,204.66,204.39,213.07126051]
[1760379302215,7.12,204.72,204.46,73.00633065]
[1760379302436,9.32,204.8,204.55,24.89800806]
[1760379302639,0.71020258,204.85,204.63,29.4514267]
[1760379302941,20.71020257,204.85,204.63,4.886]
[1760379303234,20.71020257,204.85,204.64,24.95089067]
[1760379303450,9.32,204.86,204.63,4.886]
[1760379303451,2.52825687,204.92,204.7,24.61483882]
[1760379303742,1e-08,204.88,204.75,20.8]
[1760379303923,1e-08,204.88,204.79,20.8]
[1760379304322,1e-08,204.88,204.76,41.51201406]
[1760379304553,0.61011324,204.88,204.76,41.51201406]
[1760379304842,20.19647521,204.87,204.76,41.51201406]
[1760379305142,10.87647521,204.85,204.79,20.8]
[1760379305432,0.61023237,204.84,204.79,20.8]
[1760379306017,9.32,204.84,204.83,20.8]
[1760379306230,1e-08,204.88,204.83,20.8]
[1760379307828,10.87647521,204.86,204.83,20.08]
[1760379308140,1e-08,204.88,204.84,4.88185901]
[1760379308619,1e-08,204.88,204.84,17.08650653]
[1760379309523,10.87647521,204.84,204.79,14.33986493]
[1760379309719,10.87647521,204.82,204.64,24.95089067]
[1760379309925,10.87647521,204.82,204.68,20.8]
[1760379310127,10.87647521,204.82,204.68,15.43521156]
[1760379310322,10.87647521,204.82,204.71,20.8]
[1760379310528,10.87647521,204.82,204.75,20.8]
[1760379310836,9.32,204.84,204.75,20.8]
[1760379311424,10.87647521,204.82,204.75,20.8]
[1760379312253,10.87647521,204.82,204.79,20.8]
[1760379312841,1e-08,204.88,204.79,20.8]
[1760379313235,5.96941641,204.88,204.79,20.8]
[1760379313430,1e-08,204.88,204.79,20.8]
[1760379313843,2.52825687,204.92,204.79,20.8]
[1760379314164,9.3,205.02,204.85,20.8]
[1760379314454,5.9694164,204.93,204.85,20.8]
[1760379314830,5.9694164,204.95,204.85,20.8]
[1760379315031,10.87647521,204.94,204.85,20.8]
[1760379315430,5.9694164,204.97,204.85,20.8]
[1760379315431,10.87647521,204.96,204.85,20.8]
[1760379315630,10.87647521,204.94,204.85,20.8]
[1760379316028,10.87647521,204.96,204.85,20.8]
[1760379316631,10.87647521,204.97,204.89,20.8]
[1760379317092,10.97647521,205.05,204.89,20.8]
[1760379317364,16.84589161,205.01,204.89,20.8]
[1760379317562,10.87647521,204.99,204.89,20.8]
[1760379317767,16.84589161,204.99,204.89,20.8]
[1760379318068,10.87647521,204.97,204.89,20.8]
[1760379318772,10.87647521,204.97,204.93,20.8]
[1760379318954,4.87806507,205.0,204.93,20.8]
[1760379319147,5.9694164,204.94,204.9,17.08150316]
[1760379319350,10.87647521,204.94,204.9,17.08150316]
[1760379319548,5.9694164,204.94,204.93,20.8]
[1760379320056,10.87647521,204.94,204.93,20.8]
[1760379320364,4.87760078,205.02,204.93,20.8]
[1760379320548,10.87647521,204.94,204.93,25.67971502]
[1760379322341,5.9694164,204.94,204.93,25.67971502]
[1760379322545,10.87647521,204.94,204.93,25.67971502]
[1760379322843,10.87647521,204.94,204.91,4.8801913]
[1760379322844,26.14589161,204.94,204.91,4.8801913]
[1760379323043,10.87647521,204.94,204.91,4.8801913]
[1760379323250,10.87647521,204.94,204.93,20.8]
[1760379324163,10.87647521,205.01,204.93,25.67971502]
[1760379324382,10.87647521,204.98,204.93,37.87900258]
[1760379324746,10.87647521,204.99,204.93,37.87900258]
[1760379325045,10.87647521,205.01,204.96,20.8]
[1760379325246,5.9694164,204.99,204.96,20.8]
[1760379325547,16.84589161,204.97,204.96,20.8]
[1760379325847,10.87647521,204.97,204.96,20.8]
[1760379326059,10.87647521,204.97,204.96,25.67900078]
[1760379326457,10.87647521,204.97,204.96,40.80516889]
[1760379328354,16.84589161,204.97,204.96,40.80516889]
[1760379328552,10.87647521,204.96,204.91,20.8]
[1760379328868,10.87647521,204.91,204.84,17.08650653]
[1760379329165,5.9694164,204.94,204.87,20.8]
[1760379329369,5.9694164,204.97,204.87,20.8]
[1760379329543,10.87647521,204.96,204.87,20.8]
[1760379330360,10.87647521,204.96,204.91,20.8]
[1760379330952,10.87647521,204.97,204.91,21.45]
[1760379331472,3.96114673,204.96,204.91,20.8]
[1760379331653,3.96114673,204.94,204.91,20.8]
[1760379331856,10.87647521,204.94,204.91,20.8]
[1760379332056,3.96114673,204.92,204.91,20.8]
[1760379332255,10.87647521,204.92,204.91,25.6801913]
[1760379332970,14.83762194,204.92,204.89,4.88045451]
[1760379333175,14.83762194,204.9,204.89,4.88045451]
[1760379333474,24.11762194,204.9,204.89,4.88045451]
[1760379333673,10.87647521,204.89,204.86,4.8813824]
[1760379333849,10.87647521,204.89,204.88,20.8]
[1760379334055,3.96114673,204.9,204.88,20.8]
[1760379334274,9.28,204.89,204.88,4.88090589]
[1760379334961,9.28,204.89,204.88,17.08317063]
[1760379335354,10.87647521,204.91,204.88,17.08317063]
[1760379335554,10.87647521,204.91,204.89,0.65]
[1760379335967,10.87647521,204.91,204.88,17.08317063]
[1760379336877,10.87647521,204.95,204.89,0.65]
[1760379337178,10.87647521,204.95,204.91,20.8]
[1760379337376,10.87647521,205.01,204.92,0.65]
[1760379337556,9.28,205.01,204.92,0.65]
[1760379337872,10.87647521,204.98,204.92,0.65]
[1760379338053,10.87647521,204.93,204.91,20.8]
[1760379338552,10.87647521,204.94,204.92,4.87995315]
[1760379338746,10.87647521,204.94,204.92,17.07983603]
[1760379338978,10.87647521,204.96,204.92,17.07983603]
[1760379339477,3.96114673,204.93,204.92,4.87995315]
[1760379339666,24.11762194,204.93,204.92,25.67995315]
[1760379340483,10.87647521,204.92,204.86,4.8813824]
[1760379340651,10.87647521,204.89,204.86,4.8813824]
[1760379340859,9.28,204.88,204.86,4.8813824]
[1760379341181,3.96114673,204.9,204.86,4.8813824]
[1760379341182,20.15647521,204.87,204.86,4.8813824]
[1760379341856,9.28,204.9,204.87,20.8]
[1760379342159,10.87647521,204.9,204.87,20.8]
[1760379342654,10.87647521,204.99,204.92,20.8]
[1760379342873,0.69,205.02,204.92,20.8]
[1760379342874,10.87647521,205.0,204.92,20.8]
[1760379343055,9.28,204.99,204.92,20.8]
[1760379343368,0.69,205.02,204.93,0.65]
[1760379343369,3.96114673,205.02,204.93,0.65]
[1760379343749,9.28,205.01,204.93,0.65]
[1760379343953,10.87647521,205.0,204.93,0.65]
[1760379344560,10.87647521,205.0,204.97,20.8]
[1760379344951,3.96114673,205.03,204.97,20.8]
[1760379345156,10.87647521,205.01,204.97,20.8]
[1760379345674,0.1,205.05,204.98,0.65]
[1760379345880,10.97647521,205.05,204.98,0.65]
[1760379346180,9.26,205.04,204.98,0.65]
[1760379346585,9.26,205.04,205.02,20.8]
[1760379347283,11.56647521,205.03,205.02,20.8]
[1760379347500,10.87647521,205.02,204.99,17.0740036]
[1760379347863,10.87647521,205.0,204.99,17.0740036]
[1760379348778,9.26,205.02,204.99,17.0740036]
[1760379348989,10.87647521,205.0,204.99,17.0740036]
[1760379349292,9.26,205.02,204.99,17.0740036]
[1760379349787,10.87647521,205.01,204.99,17.0740036]
[1760379349987,10.87647521,205.0,204.99,17.0740036]
[1760379350170,20.13647521,205.0,204.99,17.0740036]
[1760379350370,10.87647521,205.0,204.99,17.0740036]
[1760379350669,20.13647521,205.0,204.99,17.0740036]
[1760379350873,0.1,205.05,205.02,20.8]
[1760379351070,0.1,205.05,205.03,0.66]
[1760379351268,0.1,205.05,205.02,20.8]
[1760379351465,0.1,205.05,205.03,0.66]
[1760379351677,0.1,205.05,205.04,0.66]
[1760379352688,0.1,205.05,205.04,5.53709715]
[1760379352992,0.1,205.05,205.04,4.87709715]
[1760379353185,10.97647521,205.05,205.04,4.87709715]
[1760379353569,20.23647521,205.05,205.04,4.87709715]
[1760379354098,10.97647521,205.05,205.04,4.87709715]
[1760379354469,0.1,205.05,205.04,4.87709715]
[1760379354675,0.1,205.05,205.04,5.53709715]
[1760379355872,10.97647521,205.07,205.04,5.53709715]
[1760379355873,1e-08,205.07,205.06,20.8]
[1760379356692,11.59647522,205.07,205.06,25.67662147]
[1760379356894,15.55762195,205.07,205.06,4.87662147]
[1760379357395,24.81762195,205.07,205.06,4.87662147]
[1760379357690,24.09762195,205.07,205.06,4.87662147]
[1760379358170,20.13647522,205.07,205.06,4.87662147]
[1760379358374,9.26000001,205.07,205.06,4.87662147]
[1760379358686,1e-08,205.07,205.06,25.67662147]
[1760379358888,1e-08,205.07,205.06,26.33662147]
[1760379359774,1e-08,205.1,205.06,38.52817516]
[1760379359976,1e-08,205.1,205.09,20.8]
[1760379360499,1e-08,205.1,205.09,21.46]
[1760379360680,1e-08,205.1,205.09,26.33590813]
[1760379360886,0.1,205.16,205.09,26.33590813]
[1760379360887,0.1,205.16,205.09,62.90521915]
[1760379361087,0.1,205.16,205.1,0.66]
[1760379361487,10.87647521,205.15,205.09,62.24521915]
[1760379361689,14.83762194,205.12,205.09,37.86567847]
[1760379361898,3.96114673,205.12,205.09,37.86567847]
[1760379362113,20.11647521,205.13,205.09,37.86567847]
[1760379362399,10.87647521,205.1,205.09,25.67590813]
[1760379362697,10.87647521,205.11,205.09,4.87590813]
[1760379363787,10.97647521,205.16,205.12,20.8]
[1760379364002,14.83762194,205.13,205.09,37.86567847]
[1760379364506,14.83762194,205.14,205.09,37.86567847]
[1760379364691,10.87647521,205.14,205.09,37.86567847]
[1760379364891,9.24,205.13,205.09,37.86567847]
[1760379365196,14.83762194,205.11,205.09,37.86567847]
[1760379365585,10.87647521,205.11,205.09,37.86567847]
[1760379365879,0.1,205.16,205.12,20.8]
[1760379366292,0.1,205.16,205.13,0.66]
[1760379366484,0.1,205.18,205.14,0.66]
[1760379366688,0.1,205.18,205.15,0.66]
[1760379366910,0.1,205.18,205.16,0.66]
[1760379367082,11.26340007,205.21,205.17,21.46]
[1760379367282,0.1,205.28,205.18,0.66]
[1760379367283,9.24,205.23,205.18,0.66]
[1760379367489,0.1,205.28,205.19,0.66]
[1760379367719,2.54321491,205.36,205.19,0.66]
[1760379368008,3.96114673,205.33,205.19,0.66]
[1760379368206,14.45160007,205.4,205.19,0.66]
[1760379368410,3.96114673,205.35,205.19,9.9]
[1760379368616,9.24,205.35,205.2,0.66]
[1760379369111,9.24,205.35,205.24,20.8]
[1760379369278,18.4127468,205.4,205.25,0.66]
[1760379369479,13.20114673,205.4,205.25,0.66]
[1760379369698,9.24,205.4,205.25,0.66]
[1760379369878,14.83762194,205.39,205.25,0.66]
[1760379370097,14.83762194,205.36,205.25,0.66]
[1760379370407,14.83762194,205.34,205.25,0.66]
[1760379370711,10.87647521,205.32,205.25,0.66]
[1760379371091,10.87647521,205.32,205.29,20.8]
[1760379371699,9.24,205.32,205.29,20.8]
[1760379371897,10.87647521,205.31,205.29,20.8]
[1760379372182,4.86953735,205.36,205.26,17.05154437]
[1760379372183,24.79762194,205.3,205.26,4.87186982]
[1760379372486,20.11647521,205.29,205.26,17.05154437]
[1760379372692,10.87647521,205.32,205.26,17.05154437]
[1760379372905,10.87647521,205.32,205.29,20.8]
[1760379373085,10.87647521,205.3,205.29,25.67115787]
[1760379373984,9.22,205.3,205.29,25.67115787]
[1760379375016,10.87647521,205.3,205.29,25.67115787]
[1760379375194,10.87647521,205.38,205.32,20.8]
[1760379375512,10.87647521,205.36,205.32,20.8]
[1760379375694,20.09647521,205.36,205.33,0.66]
[1760379376413,4.68114673,205.42,205.33,0.66]
[1760379376587,15.74317159,205.48,205.34,0.66]
[1760379376588,9.22,205.41,205.34,0.66]
[1760379376914,14.62166443,205.51,205.34,0.66]
[1760379377209,0.72,205.53,205.34,0.66]
[1760379377210,9.22,205.5,205.38,20.8]
[1760379377417,9.22,205.5,205.39,0.66]
[1760379378004,4.68114673,205.53,205.42,20.8]
[1760379378216,0.72,205.57,205.43,0.66]
[1760379378389,12.15620309,205.66,205.43,0.66]
[1760379378390,9.22,205.56,205.43,0.66]
[1760379378587,9.22,205.55,205.43,0.66]
[1760379378790,12.15620309,205.66,205.43,0.66]
[1760379378791,3.96114673,205.52,205.43,0.66]
[1760379379009,10.87647521,205.49,205.41,41.38065332]
[1760379379315,11.59647521,205.51,205.44,20.8]
[1760379379316,9.22,205.48,205.44,20.8]
[1760379379824,10.87647521,205.47,205.41,17.03909254]
[1760379380024,10.87647521,205.48,205.41,17.03909254]
[1760379380189,9.22,205.47,205.44,20.8]
[1760379380591,11.53647521,205.46,205.44,20.8]
[1760379380787,20.75647521,205.45,205.41,4.86831215]
[1760379381014,14.83762194,205.44,205.41,4.86831215]
[1760379381314,14.83762194,205.44,205.36,0.71]
[1760379381315,10.87647521,205.44,205.39,12.17184578]
[1760379381617,10.87647521,205.42,205.41,20.8]
[1760379381811,20.09647521,205.42,205.41,20.8]
[1760379382142,10.87647521,205.45,205.42,20.8]
[1760379382315,10.87647521,205.43,205.42,20.8]
[1760379382613,10.87647521,205.43,205.37,4.86926035]
[1760379382811,10.87647521,205.43,205.39,20.8]
[1760379383007,3.96114673,205.4,205.36,4.86927434]
[1760379383226,3.96114673,205.4,205.32,0.71]
[1760379383413,10.87647521,205.41,205.32,0.71]
[1760379383717,9.22,205.4,205.32,0.71]
[1760379383940,9.22,205.39,205.32,0.71]
[1760379384235,10.87647521,205.37,205.32,0.71]
[1760379384387,10.87647521,205.35,205.29,12.17789468]
[1760379384594,14.83762194,205.35,205.29,12.17789468]
[1760379384813,10.87647521,205.33,205.29,12.17789468]
[1760379385295,20.09647521,205.32,205.31,20.8]
[1760379385814,10.87647521,205.32,205.29,12.17789468]
[1760379386221,10.87647521,205.32,205.31,20.8]
[1760379386426,20.09647521,205.32,205.29,12.17789468]
[1760379386934,20.09647521,205.32,205.31,20.8]
[1760379387313,10.87647521,205.32,205.31,25.67068335]
[1760379387514,20.09647521,205.32,205.31,25.67068335]
[1760379387724,10.87647521,205.32,205.31,25.67068335]
[1760379387925,24.62762194,205.32,205.29,20.8]
[1760379388107,11.44647521,205.31,205.29,20.8]
[1760379388308,9.2,205.3,205.29,20.8]
[1760379388513,3.96114673,205.32,205.29,20.8]
[1760379388808,10.87647521,205.31,205.29,20.8]
[1760379389017,3.96114673,205.35,205.29,20.8]
[1760379389018,10.87647521,205.35,205.29,20.8]
[1760379389314,10.87647521,205.33,205.3,4.8709206]
[1760379389629,10.87647521,205.31,205.3,17.0482221]
[1760379391210,10.87647521,205.31,205.25,24.36053593]
[1760379391211,15.40762194,205.31,205.28,4.87139516]
[1760379391424,14.83762194,205.31,205.28,17.04988307]
[1760379392327,15.40762194,205.31,205.28,4.87139516]
[1760379392527,10.87647521,205.31,205.28,4.87139516]
[1760379392842,9.2,205.3,205.29,0.71]
[1760379393441,9.2,205.3,205.29,25.67115787]
[1760379394724,9.2,205.3,205.29,26.38115787]
[1760379395041,9.2,205.3,205.29,25.67115787]
[1760379395645,10.87647521,205.36,205.32,20.8]
[1760379395817,19.99999999,205.51,205.32,20.8]
[1760379395818,0.57,205.4,205.32,20.8]
[1760379396131,20.07647521,205.39,205.32,20.8]
[1760379397032,20.07647521,205.39,205.32,21.51]
[1760379397230,0.57,205.43,205.32,21.51]
[1760379397427,20.07647521,205.42,205.36,20.8]
[1760379397611,10.87647521,205.4,205.36,20.8]
[1760379397813,10.87647521,205.4,205.33,17.04573125]
[1760379397814,0.57,205.39,205.33,17.04573125]
[1760379398013,10.87647521,205.37,205.36,20.8]
[1760379398229,20.07647521,205.37,205.36,20.8]
[1760379398825,0.57,205.45,205.36,21.51]
[1760379399028,20.07647521,205.44,205.36,21.51]
[1760379399229,14.62166443,205.51,205.37,0.71]
[1760379399416,9.2,205.5,205.37,0.71]
[1760379399625,9.2,205.49,205.41,20.8]
[1760379399935,9.2,205.5,205.42,0.71]
[1760379400243,6.48823054,205.53,205.42,0.71]
[1760379400416,14.6159655,205.6,205.42,0.71]
[1760379400618,0.57,205.59,205.42,0.71]
[1760379400840,5.91823054,205.57,205.42,0.71]
[1760379401042,10.87647521,205.5,205.42,0.71]
[1760379401336,10.87647521,205.43,205.41,20.8]
[1760379401512,9.2,205.42,205.41,25.66831215]
[1760379401709,20.07647521,205.42,205.41,4.86831215]
[1760379401908,10.87647521,205.42,205.41,4.86831215]
[1760379403226,20.07647521,205.42,205.41,25.66831215]
[1760379403543,10.87647521,205.42,205.41,25.66831215]
[1760379403834,9.2,205.45,205.41,62.89065332]
[1760379404035,5.91823054,205.5,205.43,20.8]
[1760379404239,16.79470575,205.48,205.41,37.83909254]
[1760379404421,9.2,205.47,205.41,37.83909254]
[1760379404743,10.87647521,205.46,205.41,37.83909254]
[1760379404939,10.87647521,205.44,205.41,17.03909254]
[1760379405141,9.2,205.43,205.41,37.83909254]
[1760379405314,0.57,205.51,205.42,0.71]
[1760379405620,20.07647521,205.5,205.45,17.03577512]
[1760379406211,10.87647521,205.5,205.45,17.03577512]
[1760379406625,9.2,205.49,205.45,17.03577512]
[1760379407338,9.2,205.48,205.46,0.71]
[1760379407645,5.91823054,205.59,205.49,17.03245899]
[1760379407834,10.87647521,205.58,205.52,20.8]
[1760379408012,20.07647521,205.58,205.52,20.8]
[1760379408329,10.87647521,205.56,205.52,33.31983008]
[1760379408531,10.87647521,205.54,205.52,12.51983008]
[1760379408721,10.87647521,205.52,205.49,17.03245899]
[1760379408919,10.87647521,205.5,205.47,4.86689054]
[1760379409117,10.87647521,205.48,205.47,4.86689054]
[1760379409447,10.87647521,205.48,205.47,17.75370549]
[1760379409624,10.87647521,205.48,205.44,17.03660435]
[1760379409625,20.05647521,205.48,205.44,17.03660435]
[1760379409828,20.05647521,205.48,205.44,17.72660435]
[1760379410027,9.18,205.47,205.45,0.69]
[1760379410242,9.18,205.47,205.46,21.49]
[1760379411149,10.87647521,205.51,205.46,21.49]
[1760379411322,10.87647521,205.51,205.47,0.69]
[1760379411523,9.18,205.5,205.49,4.86641685]
[1760379413348,9.18,205.5,205.49,26.35641685]
[1760379413550,9.18,205.5,205.49,25.66641685]
[1760379414127,9.18,205.5,205.49,17.03245899]
[1760379414955,26.54470575,205.5,205.49,4.86641685]
[1760379415327,0.57,205.54,205.48,17.0332879]
[1760379415530,10.87647521,205.52,205.48,17.7232879]
[1760379415734,5.91823054,205.55,205.51,20.8]
[1760379416047,10.87647521,205.56,205.51,20.8]
[1760379416235,9.18,205.55,205.51,21.49]
[1760379416825,10.87647521,205.56,205.51,21.49]